bitfinex-derivatives/quotes_BTCF0:USTF0_20241125
["timestamp","ask_amount","ask_price","bid_price","bid_amount"]
[1732534679002,0.050714,98508.0,98507.0,0.3608]
[1732534680511,0.050714,98508.0,98507.0,0.411514]
[1732534681113,0.050714,98508.0,98507.0,0.3608]
[1732534682611,0.050712,98511.0,98507.0,0.411514]
[1732534683011,0.050712,98511.0,98507.0,0.050714]
[1732534683910,0.050713,98509.0,98507.0,0.050714]
[1732534686112,0.0315,98518.0,98506.0,0.16737873]
[1732534686113,0.42737749,98518.0,98506.0,0.16737873]
[1732534686311,0.42737749,98518.0,98508.0,0.06487262]
[1732534686512,0.050713,98510.0,98508.0,0.06487262]
[1732534686714,0.050713,98510.0,98506.0,0.16737873]
[1732534687619,0.050713,98510.0,98506.0,0.21809373]
[1732534687820,0.050713,98510.0,98506.0,0.14826768]
[1732534689818,0.39586773,98509.0,98506.0,0.14826768]
[1732534690423,0.0315,98518.0,98506.0,0.14826768]
[1732534690424,0.44658173,98508.0,98506.0,0.09755268]
[1732534690622,0.39586773,98507.0,98506.0,0.09755268]
[1732534691122,0.050714,98507.0,98506.0,0.09755268]
[1732534692118,0.050714,98507.0,98506.0,0.03025873]
[1732534692314,0.06487262,98516.0,98498.0,0.20063262]
[1732534692315,0.06487262,98516.0,98499.0,0.49656]
[1732534692512,0.050715,98505.0,98499.0,0.49792]
[1732534693322,0.050715,98505.0,98499.0,0.52782233]
[1732534693519,0.050715,98505.0,98499.0,0.39206233]
[1732534693821,0.050715,98505.0,98499.0,0.39070233]
[1732534706131,0.050715,98505.0,98504.0,0.00416561]
[1732534710922,0.03853605,98505.0,98504.0,0.00416561]
[1732534712626,0.050718,98500.0,98499.0,0.39070233]
[1732534712820,0.050718,98500.0,98499.0,0.02990233]
[1732534713014,9.629e-05,98500.0,98487.0,0.3608]
[1732534713228,0.050723,98489.0,98487.0,0.3608]
[1732534714030,0.050723,98489.0,98487.0,0.39178672]
[1732534716222,0.33471802,98494.0,98487.0,0.39178672]
[1732534716423,0.050723,98491.0,98487.0,0.39178672]
[1732534716723,0.33471802,98494.0,98487.0,0.39178672]
[1732534716724,0.050722,98492.0,98487.0,0.39178672]
[1732534717329,0.050723,98490.0,98487.0,0.39178672]
[1732534718417,0.33471802,98496.0,98487.0,0.39178672]
[1732534718821,0.050722,98492.0,98487.0,0.39178672]
[1732534720134,0.050723,98491.0,98487.0,0.03098672]
[1732534720434,0.050723,98490.0,98484.0,0.05224896]
[1732534721326,0.050723,98490.0,98484.0,0.08246887]
[1732534721533,0.30403055,98489.0,98484.0,0.08246887]
[1732534721928,0.050723,98490.0,98484.0,0.08246887]
[1732534722129,0.30403057,98489.0,98484.0,0.08246887]
[1732534722333,0.050723,98490.0,98484.0,0.08246887]
[1732534722528,0.30399883,98489.0,98484.0,0.08246887]
[1732534722841,0.35472183,98489.0,98484.0,0.08246887]
[1732534725527,0.30399883,98489.0,98484.0,0.08246887]
[1732534726441,0.3608,98492.0,98484.0,0.08246887]
[1732534726840,0.050723,98489.0,98484.0,0.08246887]
[1732534727840,0.38508697,98489.0,98484.0,0.08246887]
[1732534728037,0.33436397,98488.0,98484.0,0.08246887]
[1732534728245,0.38508697,98489.0,98484.0,0.08246887]
[1732534728741,0.33436397,98488.0,98484.0,0.08246887]
[1732534729040,0.050723,98489.0,98484.0,0.08246887]
[1732534729041,0.38508697,98489.0,98484.0,0.08246887]
[1732534729237,0.35464983,98485.0,98484.0,0.03174287]
[1732534729436,0.050726,98485.0,98484.0,0.03174287]
[1732534730939,0.05073,98477.0,98470.0,0.06487262]
[1732534731240,0.33415896,98474.0,98470.0,0.06487262]
[1732534731538,0.050733,98472.0,98470.0,0.02986192]
[1732534731737,7.815e-05,98473.0,98466.0,0.3608]
[1732534731944,0.050733,98470.0,98466.0,0.38111631]
[1732534733233,0.050733,98470.0,98466.0,0.41205398]
[1732534734743,0.050733,98470.0,98466.0,0.35490308]
[1732534735434,0.05081015,98473.0,98466.0,0.40563808]
[1732534735630,0.050732,98472.0,98466.0,0.40563808]
[1732534736235,7.815e-05,98473.0,98466.0,0.35490308]
[1732534736439,7.815e-05,98473.0,98471.0,0.050732]
[1732534739843,0.2733338,98473.0,98471.0,0.050732]
[1732534740041,7.815e-05,98473.0,98471.0,0.050732]
[1732534743549,0.050735,98468.0,98466.0,0.49058308]
[1732534744049,0.050733,98471.0,98469.0,0.050734]
[1732534744638,0.30356883,98470.0,98466.0,0.34848678]
[1732534744955,0.050733,98471.0,98469.0,0.050734]
[1732534745252,0.38465871,98471.0,98469.0,0.050734]
[1732534746248,0.33392571,98471.0,98469.0,0.050734]
[1732534746750,0.05081015,98473.0,98470.0,0.050733]
[1732534747148,0.05081015,98473.0,98471.0,0.050733]
[1732534747955,7.815e-05,98473.0,98471.0,0.050733]
[1732534749053,0.05081015,98473.0,98471.0,0.050733]
[1732534749257,7.815e-05,98473.0,98471.0,0.050733]
[1732534749454,0.050732,98472.0,98471.0,0.050733]
[1732534752656,0.02627704,98472.0,98471.0,0.050733]
[1732534753149,7.815e-05,98473.0,98471.0,0.050733]
[1732534754663,7.815e-05,98473.0,98466.0,0.34848678]
[1732534754964,0.33480152,98467.0,98466.0,0.34848678]
[1732534755159,0.63917588,98467.0,98466.0,0.39922178]
[1732534755467,7.815e-05,98473.0,98472.0,0.050732]
[1732534755761,7.815e-05,98473.0,98472.0,0.186412]
[1732534756257,0.411523,98490.0,98488.0,0.050724]
[1732534757154,8.196e-05,98489.0,98488.0,0.050724]
[1732534760960,8.196e-05,98489.0,98483.0,0.3608]
[1732534761559,8.196e-05,98489.0,98488.0,0.050724]
[1732534767264,8.196e-05,98489.0,98488.0,0.07103958]
[1732534768556,8.196e-05,98489.0,98488.0,0.02031558]
[1732534769473,8.196e-05,98489.0,98488.0,0.07103958]
[1732534773874,8.196e-05,98489.0,98488.0,0.02031558]
[1732534777668,8.196e-05,98489.0,98488.0,0.07103958]
[1732534778577,8.196e-05,98489.0,98488.0,0.0254873]
[1732534781667,8.196e-05,98489.0,98488.0,0.04580317]
[1732534788682,8.196e-05,98489.0,98488.0,0.01757645]
[1732534788985,8.196e-05,98489.0,98488.0,0.06830045]
[1732534789485,0.050726,98485.0,98483.0,0.57769422]
[1732534789785,0.050726,98484.0,98483.0,0.39132822]
[1732534789979,0.050726,98484.0,98483.0,0.41164409]
[1732534791083,0.050726,98484.0,98483.0,0.05084409]
[1732534791384,0.050726,98484.0,98483.0,0.02031587]
[1732534796885,8.196e-05,98489.0,98483.0,0.02031587]
[1732534797187,0.050724,98487.0,98485.0,0.050725]
[1732534797687,0.050725,98486.0,98485.0,0.050725]
[1732534798092,8.196e-05,98489.0,98483.0,0.02031587]
[1732534798093,0.050726,98484.0,98483.0,0.02031587]
[1732534798975,0.050726,98484.0,98483.0,0.00361566]
[1732534802586,8.196e-05,98489.0,98476.0,0.1356]
[1732534802787,0.050729,98479.0,98478.0,0.06487262]
[1732534802994,0.050729,98479.0,98474.0,0.02975054]
[1732534803193,0.050729,98479.0,98474.0,0.21608154]
[1732534803388,0.050728,98480.0,98474.0,0.21608154]
[1732534803884,0.00510483,98477.0,98474.0,0.21608154]
[1732534804892,0.00510483,98476.0,98474.0,0.21608154]
[1732534805291,0.00510483,98476.0,98474.0,0.16535054]
[1732534805481,0.05583483,98476.0,98474.0,0.16535054]
[1732534805882,0.050731,98475.0,98473.0,0.1356]
[1732534806092,0.050732,98473.0,98464.0,0.050736]
[1732534806291,0.050732,98473.0,98466.0,0.186335]
[1732534806591,0.050733,98471.0,98463.0,0.50910962]
[1732534806989,0.00510483,98467.0,98465.0,0.050736]
[1732534807991,0.00510483,98466.0,98465.0,0.050736]
[1732534808396,0.30954033,98466.0,98465.0,0.050736]
[1732534808593,0.00510483,98466.0,98465.0,0.050736]
[1732534809691,0.00510483,98466.0,98465.0,0.07105325]
[1732534810187,0.05583983,98466.0,98465.0,0.07105325]
[1732534811399,0.05583983,98466.0,98465.0,0.02031725]
[1732534812793,0.00510483,98466.0,98465.0,0.07105325]
[1732534813794,0.33969546,98466.0,98465.0,0.07105325]
[1732534814095,0.00510483,98466.0,98465.0,0.07105325]
[1732534816089,0.00510483,98466.0,98465.0,0.02372874]
[1732534818313,0.00510483,98466.0,98465.0,0.0203196]
[1732534818805,0.00510483,98466.0,98465.0,0.05355572]
[1732534825503,0.00510483,98466.0,98465.0,0.00281972]
[1732534826098,0.00510483,98466.0,98463.0,0.29044357]
[1732534826310,0.33454291,98465.0,98463.0,0.29044357]
[1732534826514,0.38527891,98465.0,98464.0,0.02031961]
[1732534826805,0.050736,98465.0,98464.0,0.02031961]
[1732534827200,0.05584083,98465.0,98464.0,0.02031961]
[1732534828904,0.00510483,98465.0,98464.0,0.02031961]
[1732534829205,0.40116543,98465.0,98464.0,0.02031961]
[1732534829609,0.00510483,98465.0,98464.0,0.02031961]
[1732534830212,0.40054779,98465.0,98464.0,0.02031961]
[1732534830413,0.050736,98464.0,98463.0,0.03009796]
[1732534830608,0.05074,98457.0,98450.0,0.06487262]
[1732534830806,0.41154,98457.0,98450.0,0.06487262]
[1732534831010,0.41154,98457.0,98452.0,0.03137486]
[1732534831206,0.00510483,98455.0,98452.0,0.03137486]
[1732534832209,0.00510483,98454.0,98452.0,0.03137486]
[1732534832418,0.00510483,98454.0,98453.0,0.02032003]
[1732534833012,0.05584683,98454.0,98452.0,0.03137486]
[1732534833212,0.05584683,98454.0,98382.0,0.050778]
[1732534833213,0.050744,98449.0,98430.0,0.42567262]
[1732534833412,0.06487262,98440.0,98430.0,0.42567262]
[1732534833909,0.3608,98441.0,98430.0,0.45674398]
[1732534834209,0.050753,98431.0,98430.0,0.03107136]
[1732534834408,0.050753,98431.0,98400.0,0.1]
[1732534834409,0.050756,98426.0,98425.0,0.02032003]
[1732534834625,0.36092626,98431.0,98419.0,0.03056844]
[1732534834812,0.36092626,98431.0,98420.0,0.06487262]
[1732534835005,0.050758,98421.0,98420.0,0.06487262]
[1732534835321,0.36590483,98421.0,98410.0,0.03219635]
[1732534835614,0.30365905,98412.0,98410.0,0.09706897]
[1732534835920,0.3340046,98414.0,98410.0,0.03219635]
[1732534836216,0.05586783,98412.0,98410.0,0.03219635]
[1732534836512,0.050764,98411.0,98410.0,0.03219635]
[1732534837305,0.05586883,98411.0,98410.0,0.03219635]
[1732534837514,0.05596716,98411.0,98410.0,0.00152428]
[1732534840813,0.050765,98408.0,98407.0,0.02982939]
[1732534841005,0.050768,98402.0,98400.0,0.16487262]
[1732534841211,0.050768,98402.0,98400.0,0.1]
[1732534841405,0.00510483,98401.0,98400.0,0.1]
[1732534842507,0.00510483,98401.0,98400.0,0.13112553]
[1732534843018,0.36590483,98401.0,98400.0,0.1]
[1732534843616,0.36590483,98401.0,98400.0,0.095]
[1732534845237,0.36597774,98401.0,98400.0,0.095]
[1732534846935,0.36597774,98401.0,98400.0,0.09]
[1732534847135,0.37113553,98401.0,98400.0,0.09]
[1732534848132,0.37113553,98401.0,98391.0,7.654e-05]
[1732534848133,0.050773,98392.0,98391.0,7.654e-05]
[1732534848334,0.41667783,98392.0,98391.0,7.654e-05]
[1732534848941,0.72159783,98392.0,98391.0,7.654e-05]
[1732534849644,0.72166923,98392.0,98391.0,7.654e-05]
[1732534850845,0.41674923,98392.0,98391.0,7.654e-05]
[1732534852538,0.36597623,98392.0,98391.0,7.654e-05]
[1732534855944,0.41674923,98392.0,98391.0,7.654e-05]
[1732534860954,0.72166923,98392.0,98391.0,7.654e-05]
[1732534864052,0.86426923,98392.0,98391.0,7.654e-05]
[1732534868155,0.050779,98381.0,98380.0,0.031]
[1732534868343,0.050781,98377.0,98358.0,0.1426]
[1732534868544,0.3608,98380.0,98364.0,0.0289]
[1732534868753,0.050787,98365.0,98364.0,0.0289]
[1732534869148,0.05091654,98365.0,98364.0,0.0289]
[1732534869354,0.050789,98361.0,98360.0,0.0316]
[1732534870558,0.05589383,98361.0,98360.0,0.0316]
[1732534870755,0.00012954,98365.0,98360.0,0.0316]
[1732534870958,0.80266514,98380.0,98360.0,0.0316]
[1732534870959,0.3608,98376.0,98360.0,0.0316]
[1732534871152,0.3608,98376.0,98374.0,0.050783]
[1732534871347,0.3608,98376.0,98375.0,0.0314]
[1732534872062,0.3608872,98376.0,98375.0,0.0314]
[1732534872450,0.4116692,98376.0,98375.0,0.0314]
[1732534874148,0.4116692,98376.0,98368.0,0.0331]
[1732534874353,0.4116692,98376.0,98360.0,0.0316]
[1732534874354,0.38519596,98369.0,98360.0,0.0316]
[1732534874648,0.411589,98361.0,98360.0,0.0316]
[1732534875654,0.411589,98361.0,98360.0,0.01198088]
[1732534876161,0.050791,98358.0,98357.0,0.0331]
[1732534877158,0.33411814,98358.0,98357.0,0.0331]
[1732534877363,0.30374706,98358.0,98357.0,0.083892]
[1732534877662,0.30386907,98368.0,98362.0,0.050789]
[1732534877863,0.00012201,98368.0,98363.0,0.050788]
[1732534878752,0.050786,98367.0,98363.0,0.050788]
[1732534879264,0.00012201,98368.0,98363.0,0.050788]
[1732534879762,0.05090801,98368.0,98363.0,0.050788]
[1732534879954,0.00012201,98368.0,98363.0,0.050788]
[1732534880155,0.050787,98366.0,98363.0,0.08070363]
[1732534880763,0.050788,98365.0,98363.0,0.08070363]
[1732534882262,0.00012201,98368.0,98363.0,0.02991563]
[1732534882465,0.00012201,98368.0,98367.0,0.050786]
[1732534887160,0.272205,98385.0,98376.0,0.050782]
[1732534887364,0.3608,98420.0,98382.0,0.3608]
[1732534887564,0.0625,98419.0,98382.0,0.3608]
[1732534887769,0.0625,98419.0,98383.0,0.14024]
[1732534887770,0.050777,98386.0,98383.0,0.14024]
[1732534887967,0.3608,98395.0,98377.0,0.20304]
[1732534888165,8.796e-05,98394.0,98377.0,0.20304]
[1732534888470,0.050775,98390.0,98385.0,0.050777]
[1732534888778,0.050775,98390.0,98386.0,0.050776]
[1732534888976,8.796e-05,98394.0,98380.0,0.09921478]
[1732534889171,8.796e-05,98394.0,98385.0,0.3608]
[1732534889369,8.796e-05,98394.0,98392.0,0.050773]
[1732534890570,0.050774,98391.0,98385.0,0.14024]
[1732534890774,0.050774,98391.0,98389.0,0.050775]
[1732534890971,8.796e-05,98394.0,98385.0,0.14024]
[1732534891163,8.796e-05,98394.0,98390.0,0.050774]
[1732534891368,8.796e-05,98394.0,98391.0,0.050774]
[1732534891564,8.796e-05,98394.0,98382.0,0.14024]
[1732534891565,8.796e-05,98394.0,98382.0,0.50104]
[1732534891764,8.796e-05,98394.0,98392.0,0.050773]
[1732534893170,8.796e-05,98394.0,98393.0,0.30488]
[1732534897579,0.050765,98408.0,98393.0,0.30488]
[1732534897878,0.050765,98408.0,98401.0,0.3608]
[1732534898374,0.050766,98407.0,98406.0,0.050766]
[1732534898576,0.05089398,98407.0,98406.0,0.050766]
[1732534900676,0.00012798,98407.0,98406.0,0.050766]
[1732534901071,0.00012798,98407.0,98406.0,0.08131189]
[1732534904375,0.050765,98408.0,98407.0,0.05109347]
[1732534904775,0.33393574,98409.0,98408.0,0.050765]
[1732534905174,0.050765,98409.0,98408.0,0.050765]
[1732534905370,0.00010228,98409.0,98408.0,0.050765]
[1732534906091,0.05086728,98409.0,98408.0,0.050765]
[1732534906677,0.00010228,98409.0,98408.0,0.050765]
[1732534912476,0.00010228,98409.0,98407.0,0.00032747]
[1732534912678,0.411565,98408.0,98407.0,0.00032747]
[1732534912880,0.3608,98408.0,98380.0,0.09921478]
[1732534913081,0.3608,98408.0,98387.0,0.190976]
[1732534913082,0.050772,98394.0,98387.0,0.190976]
[1732534913580,0.050772,98394.0,98388.0,0.050775]
[1732534914286,0.050772,98394.0,98390.0,0.39089795]
[1732534914677,0.050772,98394.0,98391.0,0.050774]
[1732534915082,0.0318,98397.0,98392.0,0.050773]
[1732534915584,0.0318,98397.0,98393.0,0.0711044]
[1732534916088,0.0319,98396.0,98393.0,0.0711044]
[1732534917182,0.082672,98396.0,98393.0,0.0711044]
[1732534917581,0.050772,98395.0,98393.0,0.0711044]
[1732534918681,0.050772,98395.0,98393.0,0.0203314]
[1732534919684,0.050772,98394.0,98393.0,0.0203314]
[1732534924797,0.0319,98396.0,98393.0,0.0203314]
[1732534930794,0.000117,98395.0,98386.0,0.00152436]
[1732534930998,0.137437,98395.0,98386.0,0.00152436]
[1732534931392,1.5,98394.0,98386.0,0.00152436]
[1732534932096,0.137437,98395.0,98386.0,0.00152436]
[1732534933696,0.000117,98395.0,98386.0,0.00152436]
[1732534934006,0.13732,98394.0,98386.0,0.00152436]
[1732534935295,0.33441839,98387.0,98386.0,0.00152436]
[1732534935601,0.13732,98394.0,98380.0,0.03080453]
[1732534935799,0.33443218,98384.0,98379.0,0.3608]
[1732534936002,0.33443218,98383.0,98379.0,0.3608]
[1732534936497,0.33443218,98382.0,98379.0,0.3608]
[1732534936700,0.33443218,98381.0,98379.0,0.39067285]
[1732534937002,0.33443218,98380.0,98379.0,0.39067285]
[1732534937195,0.33443218,98381.0,98379.0,0.02987285]
[1732534937396,0.33443218,98380.0,98377.0,0.0203314]
[1732534938097,0.33443218,98378.0,98377.0,0.0203314]
[1732534938396,0.13732,98384.0,98377.0,0.0203314]
[1732534938808,0.0304,98383.0,98377.0,0.0203314]
[1732534939590,0.0304,98383.0,98371.0,0.39128293]
[1732534942097,0.0304,98383.0,98374.0,0.02033803]
[1732534942503,0.16772,98383.0,98374.0,0.02033803]
[1732534943002,0.56101152,98383.0,98374.0,0.02033803]
[1732534943596,0.16772,98383.0,98374.0,0.02033803]
[1732534945005,0.16772,98383.0,98371.0,0.39128293]
[1732534945410,0.3608,98372.0,98371.0,0.03048293]
[1732534945704,0.36589722,98372.0,98361.0,0.0203314]
[1732534947510,0.50189722,98372.0,98361.0,0.0203314]
[1732534949313,0.33429939,98369.0,98361.0,0.0203314]
[1732534951710,0.000122,98368.0,98360.0,0.03013486]
[1732534951916,0.033322,98368.0,98357.0,0.3608]
[1732534952215,0.33429939,98366.0,98357.0,0.3608]
[1732534952415,0.0322,98365.0,98357.0,0.3608]
[1732534952622,0.0322,98365.0,98357.0,0.39089563]
[1732534953118,0.33429939,98362.0,98357.0,0.39089563]
[1732534953322,0.136,98361.0,98357.0,0.39089563]
[1732534956427,0.33429939,98363.0,98357.0,0.39089563]
[1732534956729,0.0318,98367.0,98357.0,0.39089563]
[1732534957031,0.0318,98367.0,98358.0,0.0318]
[1732534957232,0.0318,98367.0,98362.0,0.050789]
[1732534957436,0.0318,98367.0,98358.0,0.0318]
[1732534957437,0.050788,98365.0,98359.0,0.0326]
[1732534957736,0.050789,98363.0,98359.0,0.0326]
[1732534957939,0.05079,98360.0,98359.0,0.0326]
[1732534958638,0.050791,98358.0,98357.0,0.39089563]
[1732534960325,0.136,98360.0,98357.0,0.39089563]
[1732534960625,0.136,98364.0,98357.0,0.39089563]
[1732534960831,0.000122,98368.0,98364.0,0.050788]
[1732534961426,0.33429939,98367.0,98364.0,0.050788]
[1732534961628,0.000122,98368.0,98364.0,0.050788]
[1732534962539,0.33442139,98368.0,98357.0,0.36378519]
[1732534962734,0.30385117,98363.0,98362.0,0.050789]
[1732534963240,0.000122,98368.0,98367.0,0.050786]
[1732534964940,0.000122,98368.0,98367.0,0.08144197]
[1732534967939,0.050908,98368.0,98367.0,0.08144197]
[1732534968939,0.050908,98368.0,98367.0,0.03065597]
[1732534969136,0.000122,98368.0,98363.0,0.050788]
[1732534969333,0.050787,98366.0,98365.0,0.050787]
[1732534969543,0.000122,98368.0,98366.0,0.050787]
[1732534969840,0.000122,98368.0,98359.0,0.03098235]
[1732534970139,0.000122,98368.0,98357.0,0.33368956]
[1732534970140,0.050791,98358.0,98357.0,0.33368956]
[1732534970539,0.050791,98358.0,98357.0,0.36456818]
[1732534972533,0.050791,98358.0,98357.0,0.03087862]
[1732534972735,0.050791,98358.0,98350.0,0.28600978]
[1732534972736,0.050791,98358.0,98352.0,0.050794]
[1732534972940,0.050792,98357.0,98352.0,0.050794]
[1732534973249,0.3608,98363.0,98355.0,0.0523172]
[1732534973437,0.05079,98360.0,98355.0,0.0523172]
[1732534973749,0.33463436,98356.0,98355.0,0.0523172]
[1732534974341,0.050792,98357.0,98355.0,0.0523172]
[1732534974536,0.050792,98356.0,98355.0,0.0523172]
[1732534975439,0.050792,98356.0,98355.0,0.03233807]
[1732534977154,0.411592,98356.0,98355.0,0.00298088]
[1732534977455,0.050796,98348.0,98339.0,0.050801]
[1732534977745,0.0508,98341.0,98340.0,0.02034054]
[1732534978146,0.050801,98338.0,98336.0,0.39087756]
[1732534978848,0.27381146,98337.0,98336.0,0.39087756]
[1732534979239,0.35503976,98338.0,98336.0,0.03007756]
[1732534979443,0.0303,98341.0,98326.0,0.4968]
[1732534979444,0.050803,98334.0,98326.0,0.4968]
[1732534979640,0.27375132,98329.0,98326.0,0.4968]
[1732534979944,0.27375132,98328.0,98326.0,0.3608]
[1732534980451,0.27375132,98330.0,98326.0,0.3608]
[1732534980644,0.27375132,98330.0,98327.0,0.02034174]
[1732534980947,0.27375132,98328.0,98327.0,0.02034174]
[1732534981648,0.27375132,98329.0,98327.0,0.02034174]
[1732534981851,0.30416814,98338.0,98327.0,0.02034174]
[1732534982040,0.33458495,98328.0,98327.0,0.02034174]
[1732534982248,0.0508,98340.0,98327.0,0.02034174]
[1732534982249,0.33458495,98334.0,98327.0,0.07114874]
[1732534982450,0.30398237,98328.0,98327.0,0.07114874]
[1732534982746,0.30398237,98328.0,98326.0,0.39064743]
[1732534982747,0.27358412,98331.0,98326.0,0.39064743]
[1732534982958,0.3924,98327.0,98326.0,0.02984743]
[1732534983153,0.39253002,98327.0,98319.0,0.00152571]
[1732534983340,0.6890875,98321.0,98319.0,0.02034174]
[1732534983539,0.0327,98320.0,98303.0,0.031]
[1732534983755,0.33417884,98313.0,98305.0,0.136]
[1732534984051,0.2734132,98313.0,98306.0,0.02034174]
[1732534984254,0.050818,98306.0,98300.0,0.1015]
[1732534984450,0.30523993,98312.0,98300.0,0.1015]
[1732534984451,0.0303,98305.0,98300.0,0.1015]
[1732534984653,0.2734132,98302.0,98300.0,0.1015]
[1732534984954,0.0327,98301.0,98300.0,0.1015]
[1732534985143,0.30588077,98301.0,98300.0,0.1015]
[1732534985348,0.0327,98301.0,98300.0,0.1015]
[1732534985650,0.36627523,98301.0,98300.0,0.1015]
[1732534986245,0.0327,98301.0,98300.0,0.1015]
[1732534986756,0.33573626,98301.0,98300.0,0.13137513]
[1732534987552,0.0327,98301.0,98300.0,0.12887513]
[1732534993555,0.03307993,98312.0,98307.0,0.050817]
[1732534994352,0.27278824,98312.0,98310.0,0.050815]
[1732534994553,7.993e-05,98312.0,98310.0,0.050815]
[1732534995643,0.24196457,98312.0,98310.0,0.050815]
[1732534995951,0.24188464,98311.0,98310.0,0.050815]
[1732534996153,7.993e-05,98312.0,98310.0,0.050815]
[1732534996563,0.050815,98311.0,98310.0,0.050815]
[1732534996748,7.993e-05,98312.0,98308.0,0.3608]
[1732534996951,0.050816,98309.0,98308.0,0.3608]
[1732534997253,0.27278824,98312.0,98308.0,0.3608]
[1732534997451,0.27278824,98312.0,98310.0,0.050816]
[1732534997655,0.27270831,98311.0,98310.0,0.050816]
[1732534997956,7.993e-05,98312.0,98310.0,0.050816]
[1732534998853,0.05089493,98312.0,98310.0,0.050816]
[1732534999153,0.050816,98311.0,98310.0,0.050816]
[1732534999546,7.993e-05,98312.0,98308.0,0.02977438]
[1732534999747,0.32315926,98309.0,98306.0,0.050817]
[1732534999948,0.32312658,98309.0,98306.0,0.050817]
[1732535000149,0.27231058,98308.0,98306.0,0.050817]
[1732535000349,0.05082,98301.0,98300.0,0.12963351]
[1732535000950,0.05082,98301.0,98300.0,0.05966488]
[1732535001466,0.05082,98301.0,98291.0,0.050825]
[1732535001467,0.050823,98297.0,98291.0,0.050825]
[1732535001654,0.01023394,98296.0,98291.0,0.050825]
[1732535001849,0.06105794,98295.0,98291.0,0.02996497]
[1732535002048,0.06105794,98295.0,98284.0,0.106629]
[1732535002355,0.21177147,98295.0,98285.0,0.050828]
[1732535002659,0.22170919,98295.0,98285.0,0.050828]
[1732535003258,0.00993772,98295.0,98285.0,0.050828]
[1732535003757,0.00993772,98295.0,98285.0,0.15004278]
[1732535003956,0.22170882,98295.0,98285.0,0.050828]
[1732535004258,0.06076172,98295.0,98284.0,0.08685783]
[1732535004655,0.06076172,98295.0,98284.0,0.03105783]
[1732535004859,0.06076172,98295.0,98284.0,0.050829]
[1732535005255,0.050826,98291.0,98283.0,0.39254018]
[1732535005463,0.00993772,98290.0,98283.0,0.39254018]
[1732535005756,0.00993772,98289.0,98283.0,0.3910139]
[1732535005959,0.03522977,98288.0,98283.0,0.33630939]
[1732535006150,0.03522977,98287.0,98283.0,0.33630939]
[1732535006351,0.00010342,98295.0,98283.0,0.33630939]
[1732535006352,0.02529205,98286.0,98283.0,0.33630939]
[1732535006662,0.21182406,98284.0,98283.0,0.33630939]
[1732535006958,0.23189876,98284.0,98283.0,0.33630939]
[1732535007258,0.00912187,98284.0,98283.0,0.33630939]
[1732535008061,0.050826,98290.0,98283.0,0.33630939]
[1732535008449,0.27211619,98295.0,98283.0,0.33630939]
[1732535008653,0.050824,98294.0,98283.0,0.33630939]
[1732535009163,0.24201277,98293.0,98283.0,0.27905774]
[1732535009359,0.03010342,98295.0,98283.0,0.27905774]
[1732535009660,0.050826,98292.0,98283.0,0.27905774]
[1732535010074,0.24201277,98294.0,98283.0,0.27905774]
[1732535010075,0.050826,98290.0,98283.0,0.27905774]
[1732535010366,0.01693913,98289.0,98283.0,0.0302139]
[1732535010558,0.24201277,98287.0,98280.0,0.09921478]
[1732535010759,0.01693913,98286.0,98280.0,0.09921478]
[1732535011056,0.01693913,98285.0,98280.0,0.09921478]
[1732535011269,0.01693913,98284.0,98278.0,0.02034174]
[1732535011459,0.01693913,98283.0,98278.0,0.02034174]
[1732535011762,0.01693913,98282.0,98278.0,0.02034174]
[1732535011957,0.050828,98287.0,98278.0,0.02034174]
[1732535012152,0.01675515,98286.0,98278.0,0.02034174]
[1732535012458,0.050828,98287.0,98278.0,0.02034174]
[1732535013263,0.050829,98286.0,98278.0,0.02034174]
[1732535014065,0.3608,98290.0,98278.0,0.02034174]
[1732535014266,0.05083,98284.0,98278.0,0.02034174]
[1732535014453,0.050831,98282.0,98278.0,0.02034174]
[1732535014654,0.050831,98280.0,98278.0,0.02034174]
[1732535015060,0.0228386,98279.0,98276.0,0.0930068]
[1732535015266,0.0228386,98278.0,98276.0,0.1231396]
[1732535015564,0.0228386,98277.0,98276.0,0.1231396]
[1732535015766,0.0228386,98277.0,98276.0,0.0593396]
[1732535016065,0.03832727,98277.0,98276.0,0.01868079]
[1732535016251,7.516e-05,98276.0,98257.0,0.3608]
[1732535016457,0.05084,98263.0,98257.0,0.3608]
[1732535016660,0.08916727,98263.0,98257.0,0.3608]
[1732535016866,0.4227425,98263.0,98257.0,0.3608]
[1732535017051,0.4227425,98263.0,98250.0,0.00012693]
[1732535017052,9.081e-05,98262.0,98250.0,0.00012693]
[1732535017256,0.050846,98251.0,98250.0,0.00012693]
[1732535017467,0.40900663,98251.0,98250.0,0.00012693]
[1732535017670,0.10608341,98251.0,98250.0,0.02994829]
[1732535017964,0.10608341,98251.0,98250.0,0.00012693]
[1732535018269,0.38844083,98251.0,98250.0,0.00012693]
[1732535018453,0.60774721,98251.0,98250.0,0.00012693]
[1732535018659,0.03239881,98251.0,98250.0,0.00012693]
[1732535018857,8.85e-05,98251.0,98250.0,0.00012693]
[1732535019061,0.03260232,98251.0,98244.0,0.02929614]
[1732535019265,0.05294604,98250.0,98248.0,0.050848]
[1732535019461,8.85e-05,98251.0,98241.0,0.09921478]
[1732535019462,0.07578464,98249.0,98241.0,0.08006361]
[1732535019665,0.24202429,98242.0,98241.0,0.16111242]
[1732535019961,0.27919755,98242.0,98241.0,0.16111242]
[1732535020161,0.27919755,98242.0,98241.0,0.08104881]
[1732535020568,0.03717326,98242.0,98241.0,0.08104881]
[1732535021071,0.0272042,98242.0,98241.0,0.08104881]
[1732535021271,0.01046316,98242.0,98241.0,0.08104881]
[1732535021766,0.050848,98247.0,98245.0,0.050849]
[1732535021969,0.050848,98247.0,98246.0,0.3608]
[1732535022272,0.30330773,98247.0,98246.0,0.32898353]
[1732535022465,0.050848,98247.0,98246.0,0.32898353]
[1732535022666,0.06098432,98247.0,98246.0,0.32898353]
[1732535022969,0.06098432,98247.0,98239.0,0.050852]
[1732535022970,0.050849,98246.0,98239.0,0.050852]
[1732535023265,0.21150841,98246.0,98239.0,0.050852]
[1732535023469,0.05085,98244.0,98239.0,0.050852]
[1732535023666,0.21150841,98244.0,98237.0,0.39198487]
[1732535023862,0.050852,98240.0,98237.0,0.39198487]
[1732535024163,0.050852,98240.0,98237.0,0.03118487]
[1732535024363,0.050852,98240.0,98231.0,0.0322]
[1732535024569,0.050852,98240.0,98224.0,0.05086]
[1732535024765,0.050852,98240.0,98222.0,0.19428]
[1732535025266,0.050852,98240.0,98230.0,0.11955652]
[1732535025467,8.85e-05,98251.0,98230.0,0.48035652]